bitfinex/quotes_SOLUSD_20250611
["timestamp","ask_amount","ask_price","bid_price","bid_amount"]
[1749657928210,18.3913801,166.79,166.78,10.0]
[1749657929296,18.3913801,166.79,166.75,44.50964886]
[1749657929297,18.3913801,166.79,166.76,10.0]
[1749657929502,18.3913801,166.77,166.76,10.0]
[1749657930014,21.34644176,166.77,166.74,16.3024]
[1749657930219,21.34644176,166.77,166.74,10.0]
[1749657930220,18.3913801,166.75,166.74,10.0]
[1749657930607,18.3913801,166.76,166.75,10.0]
[1749657931409,18.3913801,166.76,166.73,10.0]
[1749657931609,18.3913801,166.74,166.73,10.0]
[1749657931822,6.13778715,166.79,166.73,10.0]
[1749657932113,18.3913801,166.75,166.72,10.0]
[1749657932306,18.3913801,166.74,166.73,10.0]
[1749657932620,18.3913801,166.74,166.72,10.0]
[1749657932809,18.3913801,166.73,166.72,10.0]
[1749657933012,18.3913801,166.74,166.73,10.0]
[1749657933726,18.3913801,166.74,166.69,10.0]
[1749657933899,0.14216157,166.73,166.69,10.0]
[1749657934224,0.14216157,166.73,166.67,75.67795784]
[1749657934225,18.3913801,166.7,166.67,41.14830898]
[1749657934434,18.3913801,166.68,166.66,10.0]
[1749657934719,0.14216157,166.73,166.68,10.0]
[1749657935018,0.14216157,166.73,166.64,21.74612998]
[1749657935019,0.14216157,166.73,166.69,10.0]
[1749657935719,0.14216157,166.76,166.71,10.0]
[1749657935921,18.3913801,166.72,166.71,10.0]
[1749657936708,3.01540108,166.77,166.74,10.0]
[1749657936914,6.1,166.79,166.76,10.0]
[1749657937424,18.3913801,166.77,166.76,10.0]
[1749657937627,9.04706475,166.79,166.74,10.0]
[1749657937836,18.3913801,166.77,166.75,10.0]
[1749657938123,18.3913801,166.76,166.75,10.0]
[1749657938323,0.14216157,166.78,166.75,10.0]
[1749657938620,18.3913801,166.76,166.75,10.0]
[1749657938931,0.14216157,166.78,166.75,10.0]
[1749657939114,18.3913801,166.76,166.75,10.0]
[1749657939312,18.3913801,166.76,166.71,43.32022896]
[1749657939313,18.3913801,166.76,166.74,10.0]
[1749657939515,18.3913801,166.76,166.75,10.0]
[1749657939807,18.3913801,166.76,166.71,43.32022896]
[1749657939808,18.3913801,166.76,166.74,10.0]
[1749657940019,0.14216157,166.78,166.75,10.0]
[1749657940020,6.13835894,166.78,166.75,10.0]
[1749657940322,18.3913801,166.77,166.75,10.0]
[1749657940529,18.3913801,166.76,166.73,10.0]
[1749657940828,18.3913801,166.74,166.69,10.0]
[1749657941146,6.13810165,166.78,166.69,10.0]
[1749657941147,0.14216157,166.73,166.69,10.0]
[1749657941423,18.3913801,166.76,166.74,10.0]
[1749657941831,0.14216157,166.77,166.74,10.0]
[1749657942129,21.33844485,166.79,166.75,10.0]
[1749657942637,21.33844485,166.79,166.77,10.0]
[1749657942817,2.94706475,166.79,166.77,10.0]
[1749657943124,18.3913801,166.8,166.77,10.0]
[1749657943699,18.3913801,166.79,166.77,10.0]
[1749657944222,18.3913801,166.8,166.77,10.0]
[1749657944724,18.3913801,166.79,166.77,10.0]
[1749657944928,18.3913801,166.78,166.77,10.0]
[1749657945124,18.3913801,166.79,166.77,10.0]
[1749657945297,15.05264334,166.82,166.77,10.0]
[1749657945505,18.53354167,166.81,166.77,10.0]
[1749657945806,18.3913801,166.8,166.77,10.0]
[1749657946632,18.3913801,166.8,166.74,25.88]
[1749657946633,2.95804135,166.82,166.8,10.0]
[1749657946969,12.41745186,166.88,166.82,10.0]
[1749657946970,18.3913801,166.86,166.82,10.0]
[1749657947118,18.3913801,166.84,166.82,10.0]
[1749657947798,18.3913801,166.84,166.81,10.0]
[1749657948002,18.3913801,166.83,166.81,10.0]
[1749657948226,18.3913801,166.82,166.81,10.0]
[1749657948414,0.28432314,166.81,166.76,10.0]
[1749657948613,18.3913801,166.82,166.75,35.88]
[1749657948614,18.3913801,166.77,166.75,35.88]
[1749657948921,0.28432314,166.82,166.74,10.0]
[1749657948922,18.3913801,166.76,166.74,10.0]
[1749657949222,18.3913801,166.75,166.74,10.0]
[1749657950124,5.99700149,166.75,166.74,10.0]
[1749657950338,24.38838159,166.75,166.74,10.0]
[1749657951039,18.3913801,166.75,166.74,10.0]
[1749657951218,28.28195825,166.75,166.74,10.0]
[1749657951621,0.28432314,166.77,166.74,10.0]
[1749657951923,34.27895974,166.75,166.72,16.1726]
[1749657952124,28.28195825,166.74,166.72,6.1726]
[1749657952639,28.28195825,166.74,166.73,10.0]
[1749657952940,28.28195825,166.74,166.72,10.0]
[1749657953146,28.28195825,166.74,166.69,25.88]
[1749657953147,0.28432314,166.72,166.69,10.0]
[1749657953440,28.28195825,166.7,166.68,6.2055]
[1749657953644,28.28195825,166.69,166.68,6.2055]
[1749657953815,28.28195825,166.69,166.67,10.0]
[1749657954017,5.9994468,166.69,166.68,10.0]
[1749657954936,5.9994468,166.69,166.67,10.0]
[1749657955140,5.9994468,166.69,166.67,28.64964886]
[1749657955626,5.9994468,166.69,166.68,10.0]
[1749657956431,5.9984404,166.71,166.7,10.0]
[1749657956632,34.28039865,166.71,166.7,10.0]
[1749657956829,34.28039865,166.71,166.67,28.64964886]
[1749657957034,20.99454141,166.71,166.7,10.0]
[1749657957226,49.27649966,166.71,166.7,10.0]
[1749657958026,34.28039865,166.71,166.7,10.0]
[1749657958339,34.28039865,166.71,166.67,10.0]
[1749657958549,20.99454141,166.71,166.68,10.0]
[1749657958724,28.28195825,166.69,166.68,10.0]
[1749657960252,28.28195825,166.69,166.65,10.0]
[1749657960432,50.98674343,166.71,166.65,10.0]
[1749657960433,28.28195825,166.66,166.65,10.0]
[1749657960639,28.28195825,166.66,166.64,37.97122998]
[1749657960969,0.28432314,166.7,166.66,10.0]
[1749657961256,28.28195825,166.68,166.66,10.0]
[1749657961428,28.28195825,166.68,166.65,18.64964886]
[1749657961631,0.28432314,166.7,166.66,10.0]
[1749657961843,14.99610101,166.71,166.65,18.64964886]
[1749657961844,28.28195825,166.69,166.67,10.0]
[1749657962346,34.28095289,166.7,166.68,10.0]
[1749657962545,34.28095289,166.7,166.69,10.0]
[1749657962721,34.28095289,166.7,166.68,10.0]
[1749657962919,28.28195825,166.69,166.67,10.0]
[1749657963123,28.28195825,166.68,166.67,10.0]
[1749657963549,28.28195825,166.69,166.67,10.0]
[1749657963847,34.28095289,166.7,166.68,10.0]
[1749657964045,34.28095289,166.7,166.69,10.0]
[1749657964840,28.28195825,166.71,166.69,10.0]
[1749657965048,28.28195825,166.7,166.68,10.0]
[1749657965248,28.28195825,166.69,166.66,10.0]
[1749657965429,28.28195825,166.67,166.64,45.22158112]
[1749657965635,28.28195825,166.66,166.65,10.0]
[1749657966542,34.28219825,166.66,166.65,10.0]
[1749657966753,34.28219825,166.66,166.64,3.09648112]
[1749657967066,28.28195825,166.65,166.64,3.09648112]
[1749657967940,28.56628139,166.65,166.64,3.09648112]
[1749657968465,6.2849232,166.65,166.64,3.09648112]
[1749657968657,28.28195825,166.65,166.64,3.09648112]
[1749657969249,28.56628139,166.65,166.64,3.09648112]
[1749657969645,28.70844296,166.65,166.64,3.09648112]
[1749657969859,0.42648471,166.64,166.59,10.0]
[1749657970067,28.28195825,166.6,166.59,10.0]
[1749657970442,0.28432314,166.64,166.59,10.0]
[1749657970664,0.28432314,166.64,166.57,25.9]
[1749657970665,28.28195825,166.61,166.6,10.0]
[1749657971266,0.42648471,166.63,166.56,10.0]
[1749657971482,18.44417949,166.6,166.58,10.0]
[1749657971685,18.44417949,166.6,166.59,10.0]
[1749657971844,0.28432314,166.63,166.59,10.0]
[1749657972044,0.28432314,166.63,166.6,10.0]
[1749657972240,18.44417949,166.61,166.56,10.0]
[1749657972545,0.28432314,166.61,166.58,10.0]
[1749657972750,18.44417949,166.59,166.57,10.0]
[1749657973052,0.28432314,166.6,166.57,10.0]
[1749657973053,18.44417949,166.58,166.57,10.0]
[1749657973368,18.72850263,166.58,166.57,10.0]
[1749657973558,18.72850263,166.58,166.55,10.0]
[1749657973873,18.44417949,166.56,166.55,10.0]
[1749657974367,21.37151371,166.56,166.55,10.0]
[1749657974573,2.92733422,166.56,166.55,10.0]
[1749657974776,18.44417949,166.56,166.55,10.0]
[1749657975150,6.28747311,166.58,166.55,10.0]
[1749657975356,18.44417949,166.56,166.55,10.0]
[1749657976376,6.2875001,166.58,166.55,10.0]
[1749657976561,0.28432314,166.58,166.55,10.0]
[1749657976756,18.44417949,166.58,166.56,10.0]
[1749657977001,0.28432314,166.59,166.57,10.0]
[1749657977169,18.44417949,166.58,166.57,10.0]
[1749657977472,18.44417949,166.58,166.52,37.09382835]
[1749657977473,18.72850263,166.58,166.56,10.0]
[1749657977673,18.72850263,166.57,166.55,10.0]
[1749657977859,18.44417949,166.56,166.54,10.0]
[1749657978055,0.28432314,166.57,166.54,10.0]
[1749657978056,18.44417949,166.55,166.54,10.0]
[1749657978880,6.00393191,166.56,166.53,10.0]
[1749657979083,18.44417949,166.54,166.53,10.0]
[1749657979293,18.44417949,166.54,166.53,9.9]
[1749657980178,18.44417949,166.54,166.52,9.9]
[1749657980354,18.44417949,166.54,166.51,6.203]
[1749657980355,18.44417949,166.54,166.53,9.9]
[1749657980962,0.14216157,166.58,166.53,9.9]
[1749657980963,18.44417949,166.55,166.53,9.9]
[1749657981178,0.28432314,166.58,166.54,9.9]
[1749657981179,0.14216157,166.57,166.54,9.9]
[1749657981377,0.28432314,166.58,166.54,9.9]
[1749657981576,18.44417949,166.55,166.54,9.9]
[1749657981782,18.44417949,166.55,166.53,9.9]
[1749657981985,18.44417949,166.54,166.53,9.9]
[1749657982992,18.44417949,166.54,166.52,9.9]
[1749657983302,6.28753933,166.58,166.53,9.9]
[1749657983791,18.44417949,166.55,166.53,9.9]
[1749657983972,18.44417949,166.55,166.54,9.9]
[1749657984792,18.44417949,166.55,166.48,32.5474]
[1749657984793,6.14636451,166.55,166.53,9.9]
[1749657985084,18.44417949,166.54,166.52,9.9]
[1749657985285,18.44417949,166.53,166.52,9.9]
[1749657985689,18.44417949,166.53,166.51,9.9]
[1749657985874,0.28432314,166.55,166.52,9.9]
[1749657986080,0.28432314,166.55,166.51,9.9]
[1749657986390,0.14216157,166.54,166.51,9.9]
[1749657986592,0.14216157,166.54,166.44,0.14216157]
[1749657986593,0.28432314,166.54,166.49,9.9]
[1749657986775,0.28432314,166.54,166.47,9.9]
[1749657986776,0.14216157,166.52,166.47,9.9]
[1749657987091,18.44417949,166.48,166.46,9.9]
[1749657987264,18.44417949,166.47,166.46,9.9]
[1749657989398,0.28432314,166.46,166.43,9.9]
[1749657989608,18.44417949,166.44,166.43,9.9]
[1749657990190,0.28432314,166.5,166.45,9.9]
[1749657990378,18.44417949,166.46,166.44,9.9]
[1749657990579,21.30534415,166.5,166.38,0.5852171]
[1749657990580,18.44417949,166.45,166.41,9.9]
[1749657990776,18.44417949,166.42,166.39,9.9]
[1749657990972,18.44417949,166.4,166.39,9.9]
[1749657991182,18.44417949,166.4,166.38,0.5852171]
[1749657991183,18.44417949,166.4,166.38,10.4852171]
[1749657991387,18.44417949,166.39,166.38,10.4852171]
[1749657991895,0.28432314,166.42,166.38,10.4852171]
[1749657992095,18.44417949,166.39,166.38,10.4852171]
[1749657992498,18.44417949,166.39,166.38,0.5852171]
[1749657992794,18.44417949,166.39,166.38,10.4852171]
[1749657992982,0.28432314,166.42,166.38,10.4852171]
[1749657993293,0.28432314,166.41,166.38,10.4852171]
[1749657993478,0.28432314,166.41,166.38,0.5852171]
[1749657993479,18.44417949,166.39,166.38,0.5852171]
[1749657993680,18.44417949,166.39,166.38,10.4852171]
[1749657994071,0.28432314,166.43,166.39,9.9]
[1749657994269,0.14216157,166.43,166.4,9.9]
[1749657995299,6.15073963,166.43,166.39,9.9]
[1749657995498,18.44417949,166.4,166.39,9.9]
[1749657995794,18.44417949,166.4,166.38,0.5852171]
[1749657995795,18.58634106,166.4,166.38,0.5852171]
[1749657995986,18.58634106,166.39,166.38,0.5852171]
[1749657997078,18.44417949,166.39,166.38,0.5852171]
[1749657997282,18.58634106,166.39,166.38,0.5852171]
[1749657998802,0.14216157,166.39,166.38,0.5852171]
[1749657999093,18.58634106,166.39,166.38,0.5852171]
[1749657999603,18.44417949,166.4,166.39,9.9]
[1749658000399,6.00829338,166.44,166.41,9.9]
[1749658000598,6.00829338,166.44,166.38,0.5852171]
[1749658000599,18.58634106,166.42,166.4,9.9]
[1749658000774,18.44417949,166.41,166.4,9.9]
[1749658000974,6.1,166.45,166.41,9.9]
[1749658001207,18.44417949,166.44,166.43,9.9]
[1749658002279,18.44417949,166.44,166.42,9.9]
[1749658002477,6.00706789,166.48,166.43,9.9]
[1749658002678,18.44417949,166.44,166.43,9.9]
[1749658003204,18.44417949,166.45,166.43,9.9]
[1749658004789,18.44417949,166.45,166.42,9.9]
[1749658004982,0.14216157,166.46,166.43,9.9]
[1749658005185,18.44417949,166.45,166.43,9.9]
[1749658005415,18.44417949,166.46,166.44,9.9]
[1749658005611,18.44417949,166.46,166.43,9.9]
[1749658005928,18.44417949,166.46,166.4,18.64964886]
[1749658005929,18.44417949,166.46,166.45,9.9]
[1749658006296,4.86681523,166.51,166.46,18.64964886]
[1749658006479,18.44417949,166.52,166.49,9.9]
[1749658006902,18.44417949,166.54,166.46,9.9]
[1749658007210,18.44417949,166.48,166.47,9.9]
[1749658008183,18.44417949,166.49,166.48,9.9]
[1749658008387,18.44417949,166.52,166.5,9.9]
[1749658008703,0.14216157,166.5,166.47,9.9]
[1749658008909,0.14216157,166.47,166.45,9.9]
[1749658009108,0.14216157,166.47,166.42,16.2423]
[1749658009109,18.44417949,166.46,166.42,16.2423]
[1749658009285,18.44417949,166.43,166.42,16.2423]
[1749658010082,18.44417949,166.43,166.42,9.9]
[1749658010311,0.28432314,166.45,166.39,9.9]
[1749658010606,18.44417949,166.41,166.39,9.9]
[1749658010906,18.44417949,166.4,166.39,9.9]
[1749658011705,18.44417949,166.4,166.38,0.5852171]
[1749658012002,18.44417949,166.39,166.38,10.4852171]
[1749658012205,18.58634106,166.39,166.38,10.4852171]
[1749658012791,18.58634106,166.39,166.38,0.5852171]
[1749658013313,24.59631762,166.39,166.38,0.5852171]
[1749658013518,18.58634106,166.39,166.38,0.5852171]
[1749658013816,15.02071987,166.44,166.38,0.5852171]
[1749658013817,6.00744923,166.46,166.4,9.9]
[1749658014114,6.00744923,166.46,166.38,0.5852171]
[1749658014115,0.14216157,166.4,166.38,0.5852171]
[1749658014315,18.44417949,166.39,166.38,0.5852171]
[1749658014911,18.44417949,166.4,166.39,9.9]
[1749658015213,5.89270944,166.53,166.39,9.9]
[1749658015214,18.44417949,166.44,166.42,9.9]
[1749658015516,18.44417949,166.44,166.43,9.9]
[1749658016081,18.58634106,166.44,166.43,9.9]
[1749658017908,18.58634106,166.44,166.4,9.9]
[1749658018086,0.28432314,166.45,166.41,9.9]
[1749658018284,18.44417949,166.42,166.4,9.9]
[1749658018487,18.44417949,166.42,166.41,9.9]
[1749658018722,0.28432314,166.45,166.41,9.9]
[1749658018890,18.44417949,166.42,166.41,9.9]
[1749658019718,18.58634106,166.42,166.41,9.9]
[1749658020098,18.58634106,166.42,166.4,9.9]
[1749658020431,0.28432314,166.4,166.38,0.5852171]
[1749658020719,18.58634106,166.39,166.38,0.5852171]
[1749658020912,21.02744683,166.45,166.4,9.9]
[1749658020913,0.42648471,166.44,166.4,9.9]
[1749658021208,0.42648471,166.44,166.38,0.5852171]
[1749658021209,0.28432314,166.4,166.38,0.5852171]
[1749658021417,24.59631762,166.39,166.38,0.5852171]
[1749658022053,24.73847919,166.39,166.38,0.5852171]
[1749658022206,24.88064076,166.39,166.38,0.5852171]
[1749658023609,6.43646127,166.39,166.38,0.5852171]
[1749658023828,24.88064076,166.39,166.38,0.5852171]
[1749658025091,18.8706642,166.39,166.38,0.5852171]
[1749658026207,0.42648471,166.38,166.32,9.9]
[1749658026521,0.28432314,166.37,166.31,9.9]
[1749658026693,0.28432314,166.37,166.32,9.9]
[1749658026896,0.28432314,166.37,166.27,6.53]
[1749658026897,0.28432314,166.32,166.27,6.53]
[1749658027245,18.44417949,166.28,166.23,15.9754]
[1749658027520,18.44417949,166.28,166.17,9.9]
[1749658027521,6.01576129,166.23,166.17,9.9]
[1749658027695,18.44417949,166.18,166.16,9.9]
[1749658027898,0.28432314,166.2,166.16,9.9]
[1749658028110,0.28432314,166.2,166.12,6.4617]
[1749658028111,18.44417949,166.17,166.13,9.9]
[1749658028392,18.44417949,166.14,166.13,9.9]
[1749658028594,18.44417949,166.14,166.12,16.3617]
[1749658028893,0.28432314,166.17,166.12,16.3617]
[1749658029114,18.44417949,166.13,166.09,9.9]
[1749658029294,18.44417949,166.1,166.09,9.9]
[1749658029489,0.28432314,166.15,166.13,9.9]
[1749658029727,0.14216157,166.17,166.16,9.9]
[1749658030096,18.58634106,166.17,166.16,9.9]
[1749658030298,0.14216157,166.19,166.18,9.9]
[1749658030622,33.68636321,166.26,166.08,18.64964886]
[1749658030623,6.01503759,166.25,166.19,9.9]
[1749658030915,2.94201037,166.29,166.26,9.9]
[1749658031119,18.44417949,166.27,166.24,9.9]
[1749658031328,18.44417949,166.25,166.22,9.9]
[1749658031499,18.58634106,166.23,166.22,9.9]
[1749658032119,0.14216157,166.22,166.21,9.9]
[1749658032300,18.58634106,166.22,166.21,9.9]
[1749658032496,18.58634106,166.22,166.19,9.9]
[1749658032801,18.58634106,166.2,166.19,9.9]
[1749658033007,18.72850263,166.2,166.19,9.9]
[1749658033216,0.14216157,166.19,166.16,9.9]
[1749658033418,18.44417949,166.17,166.16,9.9]
[1749658033725,6.01671987,166.21,166.19,9.9]
[1749658033900,18.72850263,166.2,166.19,9.9]
[1749658034100,0.28432314,166.2,166.19,9.9]
[1749658034314,18.72850263,166.2,166.19,9.9]
[1749658035319,18.72850263,166.2,166.17,9.9]
[1749658035521,18.44417949,166.18,166.17,9.9]
[1749658035719,18.44417949,166.18,166.16,9.9]
[1749658035917,6.01754924,166.19,166.16,9.9]
[1749658036114,6.01754924,166.19,166.15,6.4986]
[1749658036115,18.44417949,166.18,166.17,9.9]
[1749658036309,0.28432314,166.2,166.18,9.9]
[1749658036816,18.44417949,166.19,166.18,9.9]
[1749658037062,6.01395236,166.28,166.24,9.9]
[1749658037207,18.44417949,166.25,166.24,9.9]
[1749658037733,18.72850263,166.25,166.24,9.9]
[1749658038039,0.42648471,166.24,166.17,9.9]
[1749658038219,0.42648471,166.24,166.15,6.4986]
[1749658038220,18.44417949,166.18,166.15,6.4986]
[1749658038420,18.79181043,166.24,166.16,9.9]
[1749658038603,21.13759398,166.25,166.18,9.9]
[1749658038907,0.28432314,166.24,166.2,9.9]
[1749658039110,6.1,166.25,166.2,9.9]
[1749658039311,6.1,166.25,166.15,6.4986]
[1749658039312,6.1,166.25,166.22,9.9]
[1749658039522,18.72850263,166.24,166.22,9.9]
[1749658039719,18.72850263,166.23,166.22,9.9]
[1749658039921,0.28432314,166.23,166.22,9.9]
[1749658040325,6.01395236,166.28,166.23,9.9]
[1749658040529,6.01395236,166.28,166.2,18.44417949]
[1749658040530,18.44417949,166.27,166.24,9.9]
[1749658040730,24.45813185,166.28,166.24,9.9]
[1749658040933,18.44417949,166.28,166.25,9.9]
[1749658041334,18.44417949,166.28,166.27,9.9]
[1749658041517,18.44417949,166.28,166.26,9.9]
[1749658041714,18.44417949,166.27,166.25,9.9]
[1749658041916,0.14216157,166.28,166.26,9.9]
[1749658042526,0.28432314,166.28,166.25,9.9]
[1749658042728,0.28432314,166.28,166.26,9.9]
[1749658043734,18.44417949,166.31,166.3,9.9]
[1749658044557,18.44417949,166.31,166.29,9.9]
[1749658044718,3.04730872,166.33,166.29,9.9]
[1749658044927,0.28432314,166.34,166.3,9.9]
[1749658045120,18.44417949,166.31,166.3,9.9]
[1749658045325,18.44417949,166.32,166.3,9.9]
[1749658045629,18.44417949,166.31,166.3,9.9]
[1749658045839,18.44417949,166.31,166.29,9.9]
[1749658046243,6.29687754,166.32,166.31,9.9]
[1749658046441,0.28432314,166.32,166.31,9.9]
[1749658046740,18.72850263,166.32,166.31,9.9]
[1749658046938,18.44417949,166.32,166.31,9.9]
[1749658047245,18.44417949,166.32,166.24,9.9]
[1749658047246,37.31484369,166.32,166.24,9.9]
[1749658047544,18.44417949,166.28,166.26,9.9]
[1749658047925,24.45818246,166.28,166.26,9.9]
[1749658048125,24.45782372,166.29,166.26,9.9]
[1749658048331,18.44417949,166.29,166.26,9.9]
[1749658048645,6.29808113,166.29,166.28,9.9]
[1749658048843,18.72850263,166.29,166.28,9.9]
[1749658049229,18.44417949,166.29,166.28,9.9]
[1749658049828,24.4577702,166.29,166.28,9.9]
[1749658050031,24.4577702,166.29,166.26,9.9]
[1749658050032,24.74209334,166.29,166.26,9.9]
[1749658050346,24.74209334,166.29,166.19,6.4947]
[1749658050347,0.42648471,166.26,166.19,6.4947]
[1749658050723,0.28432314,166.22,166.19,6.4947]
[1749658051045,0.42648471,166.28,166.19,6.4947]
[1749658051238,21.04756749,166.29,166.24,18.44417949]
[1749658051445,24.4577702,166.29,166.24,18.44417949]
[1749658051647,24.4577702,166.29,166.19,6.4947]
[1749658051648,6.01359071,166.29,166.19,6.4947]
[1749658051949,0.28432314,166.28,166.24,18.44417949]
[1749658052123,0.28432314,166.28,166.2,18.64964886]
[1749658052648,0.28432314,166.27,166.24,18.44417949]
[1749658052828,0.28432314,166.27,166.23,18.44417949]
[1749658053028,18.72850263,166.27,166.22,26.8]
[1749658053230,18.72850263,166.27,166.22,45.24417949]
[1749658053446,0.28432314,166.27,166.22,45.24417949]
[1749658053652,18.72850263,166.27,166.22,45.24417949]
[1749658053859,0.28432314,166.27,166.23,18.44417949]
[1749658054029,0.28432314,166.27,166.22,26.8]
[1749658054228,6.29870938,166.27,166.23,18.44417949]
[1749658054428,15.03247495,166.31,166.22,26.8]
[1749658054738,24.45715666,166.31,166.26,18.44417949]
[1749658054933,18.44417949,166.3,166.25,18.44417949]
[1749658055136,6.01297717,166.31,166.24,1.6321]
[1749658055137,21.04514601,166.31,166.24,1.6321]
[1749658055341,18.44417949,166.28,166.24,1.6321]
[1749658056257,18.44417949,166.28,166.24,1.43546]
[1749658056450,6.0136484,166.29,166.25,18.44417949]
[1749658056957,24.45745951,166.3,166.25,18.44417949]
[1749658057469,6.01328002,166.3,166.24,19.87963949]
[1749658057640,24.45745951,166.3,166.25,18.44417949]
[1749658057838,18.44417949,166.3,166.25,18.44417949]
[1749658058062,6.29725936,166.31,166.26,18.44417949]
[1749658058248,24.74143885,166.31,166.26,18.44417949]
[1749658058561,24.74143885,166.31,166.28,6.1807]
[1749658058562,18.44417949,166.31,166.28,6.1807]
[1749658058747,18.44417949,166.29,166.24,26.06033949]
[1749658059060,0.42648471,166.31,166.24,6.1807]
[1749658059264,18.44417949,166.26,166.24,6.1807]
[1749658060248,18.44417949,166.28,166.24,6.1807]
[1749658060458,6.01296991,166.31,166.24,6.1807]
[1749658060667,24.4571494,166.31,166.26,18.44417949]
[1749658061253,18.44417949,166.3,166.25,18.44417949]
[1749658062474,24.45744697,166.3,166.25,18.44417949]
[1749658062828,6.4,166.32,166.25,18.44417949]
[1749658063131,0.28432314,166.31,166.24,6.1807]
[1749658063357,18.44417949,166.26,166.24,6.1807]
[1749658063556,18.44417949,166.27,166.24,6.1807]
[1749658067744,24.45782825,166.29,166.24,24.62487949]
[1749658067963,24.45782825,166.29,166.24,6.1807]
[1749658067964,18.44417949,166.28,166.24,6.1807]
[1749658068370,6.4,166.32,166.25,18.44417949]
[1749658068560,18.44417949,166.3,166.25,18.44417949]
[1749658069172,12.41258952,166.32,166.27,18.44417949]
[1749658069379,30.85676901,166.32,166.27,18.44417949]
[1749658069560,18.44417949,166.31,166.27,18.44417949]
[1749658069890,30.85676901,166.32,166.25,18.64964886]
[1749658070182,18.44417949,166.31,166.25,18.64964886]
[1749658070375,24.45712542,166.31,166.26,18.44417949]
[1749658070686,12.41262539,166.32,166.26,18.44417949]
[1749658070883,6.4,166.32,166.28,18.44417949]
[1749658071088,6.4,166.32,166.25,18.64964886]
[1749658071384,24.84417949,166.32,166.27,18.44417949]
[1749658072789,6.4,166.32,166.28,20.03137949]
[1749658072952,6.4,166.32,166.28,1.5872]
[1749658073157,18.44417949,166.3,166.28,1.5872]
[1749658074472,18.44417949,166.31,166.28,1.5872]
[1749658074681,6.4,166.32,166.28,1.5872]
[1749658075092,4.71993589,166.39,166.28,1.5872]
[1749658075093,4.46921456,166.4,166.31,18.44417949]
[1749658075297,18.44417949,166.37,166.32,18.44417949]
[1749658076091,18.44417949,166.37,166.32,24.79107949]
[1749658076661,6.00997656,166.39,166.32,6.3469]
[1749658076662,18.44417949,166.36,166.32,6.3469]
[1749658077199,6.01103116,166.37,166.32,6.3469]
[1749658077399,18.44417949,166.35,166.32,6.3469]
[1749658077592,6.01103116,166.37,166.32,6.3469]
[1749658077593,18.44417949,166.34,166.32,6.3469]
[1749658077767,18.44417949,166.35,166.32,6.3469]
[1749658078406,6.01103116,166.37,166.32,6.3469]
[1749658078614,18.44417949,166.37,166.32,24.79107949]
[1749658078920,18.44417949,166.37,166.33,18.44417949]
[1749658079101,18.44417949,166.38,166.33,18.44417949]
[1749658079408,18.44417949,166.37,166.33,18.44417949]
[1749658079616,6.29403874,166.4,166.32,6.3469]
[1749658079617,18.44417949,166.36,166.32,6.3469]
[1749658079810,18.44417949,166.36,166.32,24.79107949]
[1749658080023,18.44417949,166.36,166.32,6.3469]
[1749658080315,18.44417949,166.35,166.32,6.3469]
[1749658080689,18.44417949,166.36,166.32,6.3469]
[1749658081017,7.45996268,166.41,166.33,18.64964886]
[1749658081222,18.44417949,166.4,166.35,18.44417949]
[1749658081519,18.44417949,166.37,166.33,18.64964886]
[1749658081715,18.44417949,166.36,166.32,6.3469]
[1749658081893,18.44417949,166.37,166.32,24.79107949]
[1749658082082,9.36214944,166.41,166.32,6.3469]
[1749658082083,18.44417949,166.38,166.32,6.3469]
[1749658082282,18.44417949,166.38,166.33,18.44417949]
[1749658082688,18.44417949,166.37,166.33,18.44417949]
[1749658082898,18.44417949,166.4,166.35,18.44417949]
[1749658083589,18.44417949,166.39,166.34,45.14417949]
[1749658084703,3.06849675,166.41,166.34,45.14417949]
[1749658084902,18.44417949,166.41,166.36,18.44417949]
[1749658085124,21.46905209,166.41,166.36,18.44417949]
[1749658085422,21.46905209,166.41,166.34,26.7]